fUST/lending_fUST_20250715
["ID","MTS","AMOUNT","RATE_DAILY","PERIOD"]
[372259170,1752567042131,-460.0,0.00019178,2]
[372259172,1752567042140,-151.0,0.00019178,2]
[372259174,1752567042149,-460.0,0.00019178,2]
[372259176,1752567042158,-513.91435364,0.00019178,2]
[372259178,1752567042167,-460.0,0.00019178,2]
[372259180,1752567042176,-560.6,0.00019178,2]
[372259182,1752567042186,-460.0,0.00019178,2]
[372259184,1752567042196,-460.0,0.00019178,2]
[372259186,1752567042208,-460.0,0.00019178,2]
[372259188,1752567042218,-460.0,0.00019178,2]
[372259190,1752567042228,-525.67798085,0.00019178,2]
[372259192,1752567042237,-460.0,0.00019178,2]
[372259194,1752567042245,-460.0,0.00019178,2]
[372259196,1752567042254,-460.0,0.00019178,2]
[372259198,1752567042263,-460.0,0.00019178,2]
[372259200,1752567042272,-460.0,0.00019178,2]
[372259202,1752567042282,-460.0,0.00019178,2]
[372259204,1752567042291,-460.0,0.00019178,2]
[372259206,1752567042300,-460.0,0.00019178,2]
[372259208,1752567042309,-460.0,0.00019178,2]
[372259210,1752567042319,-460.0,0.00019178,2]
[372259212,1752567042328,-511.94838636,0.00019178,2]
[372259214,1752567042338,-460.0,0.00019178,2]
[372259216,1752567042348,-460.0,0.00019178,2]
[372259218,1752567042357,-460.0,0.00019178,2]
[372259220,1752567042367,-460.67570846,0.00019178,2]
[372259222,1752567042377,-460.0,0.00019178,2]
[372259224,1752567042387,-460.0,0.00019178,2]
[372259226,1752567042396,-543.93316443,0.00019178,2]
[372259228,1752567042405,-460.0,0.00019178,2]
[372259230,1752567042416,-463.30801176,0.00019178,2]
[372259232,1752567042425,-460.0,0.00019178,2]
[372259234,1752567042435,-460.0,0.00019178,2]
[372259236,1752567042444,-460.0,0.00019178,2]
[372259238,1752567042455,-460.0,0.00019178,2]
[372259240,1752567042466,-460.0,0.00019178,2]
[372259241,1752567042476,-460.0,0.00019178,2]
[372259244,1752567042486,-240.0,0.00019178,2]
[372259245,1752567042495,-460.0,0.00019178,2]
[372259247,1752567042504,-460.96913146,0.00019178,2]
[372259249,1752567042514,-460.0,0.00019178,2]
[372259252,1752567042524,-460.0,0.00019178,2]
[372259254,1752567042534,-1269.77,0.00019178,2]
[372259257,1752567042544,-460.0,0.00019178,2]
[372259259,1752567042553,-460.0,0.00019178,2]
[372259261,1752567042563,-460.0,0.00019178,2]
[372259263,1752567042572,-460.0,0.00019178,2]
[372259266,1752567042582,-460.0,0.00019178,2]
[372259269,1752567042591,-460.0,0.00019178,2]
[372259271,1752567042601,-500.0,0.00019178,2]
[372259273,1752567042610,-867.08,0.00019178,2]
[372259275,1752567042619,-460.0,0.00019178,2]
[372259277,1752567042629,-460.0,0.00019178,2]
[372259279,1752567042639,-1674.63,0.00019178,2]
[372259281,1752567042648,-460.0,0.00019178,2]
[372259283,1752567042657,-194.80044835,0.00019178,2]
[372259285,1752567042666,-460.0,0.00019178,2]
[372259287,1752567042676,-460.0,0.00019178,2]
[372259289,1752567042686,-460.0,0.00019178,2]
[372259291,1752567042696,-4147.86,0.00019178,2]
[372259293,1752567042707,-460.0,0.00019178,2]
[372259307,1752567042817,-460.47346154,0.00019178,2]
[372259309,1752567042827,-460.0,0.00019178,2]
[372259311,1752567042836,-460.0,0.00019178,2]
[372259313,1752567042846,-462.49267801,0.00019178,2]
[372259315,1752567042856,-460.0,0.00019178,2]
[372259317,1752567042865,-460.0,0.00019178,2]
[372259319,1752567042874,-460.0,0.00019178,2]
[372259321,1752567042883,-546.3756164,0.00019178,2]
[372259323,1752567042893,-460.0,0.00019178,2]
[372259325,1752567042902,-460.0,0.00019178,2]
[372259327,1752567042912,-471.56441384,0.00019178,2]
[372259329,1752567042922,-460.0,0.00019178,2]
[372259331,1752567042931,-460.0,0.00019178,2]
[372259333,1752567042940,-460.0,0.00019178,2]
[372259335,1752567042951,-460.0,0.00019178,2]
[372259337,1752567042962,-460.0,0.00019178,2]
[372259339,1752567042971,-460.0,0.00019178,2]
[372259341,1752567042981,-461.84116932,0.00019178,2]
[372259343,1752567042990,-460.0,0.00019178,2]
[372259345,1752567042999,-460.0,0.00019178,2]
[372259347,1752567043009,-5848.8,0.00019178,2]
[372259348,1752567043019,-460.0,0.00019178,2]
[372259350,1752567043028,-886.89,0.00019178,2]
[372259353,1752567043038,-460.0,0.00019178,2]
[372259355,1752567043047,-460.0,0.00019178,2]
[372259357,1752567043057,-963.83,0.00019178,2]
[372259359,1752567043065,-460.0,0.00019178,2]
[372259361,1752567043075,-460.0,0.00019178,2]
[372259363,1752567043084,-498.44211083,0.00019178,2]
[372259365,1752567043094,-460.0,0.00019178,2]
[372259367,1752567043103,-460.0,0.00019178,2]
[372259369,1752567043113,-490.87399904,0.00019178,2]
[372259371,1752567043122,-460.0,0.00019178,2]
[372259373,1752567043131,-771.92,0.00019178,2]
[372259375,1752567043141,-460.0,0.00019178,2]
[372259376,1752567043150,-460.0,0.00019178,2]
[372259378,1752567043160,-460.0,0.00019178,2]
[372259380,1752567043170,-463.59562676,0.00019178,2]
[372259382,1752567043179,-460.0,0.00019178,2]
[372259384,1752567043190,-460.0,0.00019178,2]
[372259386,1752567043200,-460.0,0.00019178,2]
[372259388,1752567043210,-680.18,0.00019178,2]
[372259390,1752567043219,-617.26,0.00019178,2]
[372259392,1752567043228,-460.0,0.00019178,2]
[372259394,1752567043237,-460.0,0.00019178,2]
[372259396,1752567043246,-1007.25,0.00019178,2]
[372259398,1752567043256,-464.50986927,0.00019178,2]
[372259400,1752567043265,-460.0,0.00019178,2]
[372259402,1752567043274,-460.0,0.00019178,2]
[372259404,1752567043284,-460.0,0.00019178,2]
[372259406,1752567043293,-460.0,0.00019178,2]
[372259408,1752567043303,-460.0,0.00019178,2]
[372259410,1752567043312,-460.0,0.00019178,2]
[372259412,1752567043321,-460.0,0.00019178,2]
[372259414,1752567043331,-460.0,0.00019178,2]
[372259416,1752567043340,-460.0,0.00019178,2]
[372259418,1752567043349,-460.0,0.00019178,2]
[372259420,1752567043358,-461.4086146,0.00019178,2]
[372259421,1752567043368,-460.0,0.00019178,2]
[372259423,1752567043378,-460.0,0.00019178,2]
[372259425,1752567043387,-917.91,0.00019178,2]
[372259427,1752567043397,-460.0,0.00019178,2]
[372259429,1752567043407,-460.0,0.00019178,2]
[372259431,1752567043417,-460.0,0.00019178,2]
[372259434,1752567043427,-460.0,0.00019178,2]
[372259435,1752567043437,-460.0,0.00019178,2]
[372259437,1752567043446,-460.0,0.00019178,2]
[372259440,1752567043458,-151.0,0.00019178,2]
[372259442,1752567043470,-1939.88,0.00019178,2]
[372259444,1752567043480,-460.0,0.00019178,2]
[372259446,1752567043489,-3586.98,0.00019178,2]
[372259448,1752567043499,-1354.66,0.00019178,2]
[372259450,1752567043510,-460.0,0.00019178,2]
[372259452,1752567043519,-460.0,0.00019178,2]
[372259454,1752567043529,-460.0,0.00019178,2]
[372259456,1752567043542,-460.0,0.00019178,2]
[372259458,1752567043552,-460.494272,0.00019178,2]
[372259459,1752567043563,-541.6,0.00019178,2]
[372259461,1752567043572,-460.0,0.00019178,2]
[372259464,1752567043582,-460.0,0.00019178,2]
[372259466,1752567043592,-7025.13,0.00019178,2]
[372259467,1752567043601,-808.58,0.00019178,2]
[372259470,1752567043611,-460.0,0.00019178,2]
[372259471,1752567043620,-464.08906423,0.00019178,2]
[372259473,1752567043630,-460.0,0.00019178,2]
[372259475,1752567043639,-460.0,0.00019178,2]
[372259477,1752567043649,-460.0,0.00019178,2]
[372259479,1752567043658,-460.0,0.00019178,2]
[372259480,1752567043668,-460.0,0.00019178,2]
[372259481,1752567043677,-460.0,0.00019178,2]
[372259482,1752567043687,-460.0,0.00019178,2]
[372259484,1752567043697,-460.0,0.00019178,2]
[372259485,1752567043707,-649.64,0.00019178,2]
[372259487,1752567043716,-336.67,0.00019178,2]
[372259488,1752567043726,-460.0,0.00019178,2]
[372259489,1752567043736,-464.93767767,0.00019178,2]
[372259490,1752567043745,-647.05,0.00019178,2]
[372259491,1752567043754,-460.0,0.00019178,2]
[372259492,1752567043764,-460.0,0.00019178,2]
[372259493,1752567043773,-460.0,0.00019178,2]
[372259494,1752567043783,-483.97,0.00019178,2]
[372259495,1752567043793,-460.0,0.00019178,2]
[372259496,1752567043802,-460.0,0.00019178,2]
[372259497,1752567043812,-460.0,0.00019178,2]
[372259498,1752567043822,-563.75,0.00019178,2]
[372259499,1752567043831,-460.0,0.00019178,2]
[372259500,1752567043841,-460.0,0.00019178,2]
[372259501,1752567043850,-460.0,0.00019178,2]
[372259502,1752567043860,-460.0,0.00019178,2]
[372259503,1752567043869,-460.0,0.00019178,2]
[372259504,1752567043879,-460.0,0.00019178,2]
[372259505,1752567043888,-460.0,0.00019178,2]
[372259506,1752567043897,-460.20326221,0.00019178,2]
[372259507,1752567043907,-460.0,0.00019178,2]
[372259508,1752567043917,-727.59,0.00019178,2]
[372259509,1752567043926,-727.59,0.00019178,2]
[372259510,1752567043937,-727.59,0.00019178,2]
[372259511,1752567043946,-861.58,0.00019178,2]
[372259512,1752567043958,-727.59,0.00019178,2]
[372259513,1752567043968,-727.59,0.00019178,2]
[372259514,1752567043977,-727.59,0.00019178,2]
[372259515,1752567043987,-727.59,0.00019178,2]
[372259516,1752567043997,-727.59,0.00019178,2]
[372259517,1752567044006,-727.59,0.00019178,2]
[372259518,1752567044017,-460.0,0.00019178,2]
[372259519,1752567044027,-727.59,0.00019178,2]
[372259520,1752567044036,-727.59,0.00019178,2]
[372259521,1752567044045,-538.14,0.00019178,2]
[372259522,1752567044055,-727.59,0.00019178,2]
[372259523,1752567044065,-727.59,0.00019178,2]
[372259524,1752567044074,-460.0,0.00019178,2]
[372259525,1752567044083,-727.59,0.00019178,2]
[372259526,1752567044093,-727.59,0.00019178,2]
[372259527,1752567044102,-727.59,0.00019178,2]
[372259528,1752567044112,-727.59,0.00019178,2]
[372259529,1752567044121,-460.0,0.00019178,2]
[372259530,1752567044130,-460.0,0.00019178,2]
[372259531,1752567044139,-727.59,0.00019178,2]
[372259532,1752567044147,-727.59,0.00019178,2]
[372259533,1752567044158,-460.0,0.00019178,2]
[372259534,1752567044167,-460.0,0.00019178,2]
[372259535,1752567044176,-727.59,0.00019178,2]
[372259536,1752567044185,-727.59,0.00019178,2]
[372259537,1752567044195,-727.59,0.00019178,2]
[372259538,1752567044204,-727.59,0.00019178,2]
[372259539,1752567044214,-443.22857386,0.00019178,2]
[372259540,1752567044223,-727.68499386,0.00019178,2]
[372259541,1752567044232,-460.0,0.00019178,2]
[372259542,1752567044241,-460.0,0.00019178,2]
[372259543,1752567044250,-460.0,0.00019178,2]
[372259544,1752567044259,-460.0,0.00019178,2]
[372259545,1752567044268,-460.0,0.00019178,2]
[372259546,1752567044277,-460.0,0.00019178,2]
[372259547,1752567044286,-503.12965529,0.00019178,2]
[372259548,1752567044295,-1599.32,0.00019178,2]
[372259549,1752567044305,-460.0,0.00019178,2]
[372259550,1752567044314,-460.0,0.00019178,2]
[372259551,1752567044323,-451.40919799,0.00019178,2]
[372259552,1752567044334,-2326.61,0.00019178,2]
[372259553,1752567044343,-888.4,0.00019178,2]
[372259555,1752567044353,-521.92555394,0.00019178,2]
[372259557,1752567044362,-460.0,0.00019178,2]
[372259558,1752567044371,-460.0,0.00019178,2]
[372259560,1752567044380,-460.0,0.00019178,2]
[372259561,1752567044390,-460.0,0.00019178,2]
[372259562,1752567044399,-461.40243291,0.00019178,2]
[372259563,1752567044408,-460.0,0.00019178,2]
[372259564,1752567044418,-460.0,0.00019178,2]
[372259565,1752567044427,-460.0,0.00019178,2]
[372259566,1752567044437,-460.0,0.00019178,2]
[372259568,1752567044446,-460.0,0.00019178,2]
[372259570,1752567044458,-460.0,0.00019178,2]
[372259572,1752567044469,-460.0,0.00019178,2]
[372259574,1752567044479,-460.0,0.00019178,2]
[372259576,1752567044488,-460.0,0.00019178,2]
[372259578,1752567044497,-460.0,0.00019178,2]
[372259580,1752567044507,-460.0,0.00019178,2]
[372259582,1752567044515,-460.0,0.00019178,2]
[372259584,1752567044525,-460.0,0.00019178,2]
[372259586,1752567044534,-460.0,0.00019178,2]
[372259588,1752567044543,-460.0,0.00019178,2]
[372259589,1752567044553,-460.0,0.00019178,2]
[372259591,1752567044564,-460.0,0.00019178,2]
[372259594,1752567044575,-500.0,0.00019178,2]
[372259596,1752567044585,-500.0,0.00019178,2]
[372259598,1752567044595,-500.0,0.00019178,2]
[372259600,1752567044604,-460.0,0.00019178,2]
[372259601,1752567044614,-500.0,0.00019178,2]
[372259604,1752567044623,-500.0,0.00019178,2]
[372259605,1752567044635,-460.0,0.00019178,2]
[372259607,1752567044645,-460.0,0.00019178,2]
[372259609,1752567044654,-460.0,0.00019178,2]
[372259610,1752567044663,-965.69,0.00019178,2]
[372259611,1752567044672,-460.0,0.00019178,2]
[372259612,1752567044682,-500.0,0.00019178,2]
[372259613,1752567044692,-460.0,0.00019178,2]
[372259614,1752567044701,-509.52856591,0.00019178,2]
[372259615,1752567044712,-460.0,0.00019178,2]
[372259616,1752567044722,-460.0,0.00019178,2]
[372259617,1752567044732,-460.0,0.00019178,2]
[372259618,1752567044741,-266.41380989,0.00019178,2]
[372259619,1752567044751,-560.9,0.00019178,2]
[372259620,1752567044761,-462.73562627,0.00019178,2]
[372259621,1752567044770,-460.0,0.00019178,2]
[372259622,1752567044779,-460.0,0.00019178,2]
[372259623,1752567044789,-460.0,0.00019178,2]
[372259624,1752567044798,-215.084689,0.00019178,2]
[372259625,1752567044807,-762.45275394,0.00019185,2]
[372259626,1752567044817,-2449.87,0.000192,2]
[372259627,1752567044826,-5770.43,0.000192,2]
[372259628,1752567044836,-151.0,0.000192,2]
[372259629,1752567044845,-151.0,0.00019204,2]
[372259630,1752567044855,-151.0,0.00019204,2]
[372259631,1752567044864,-1007.0,0.00019204,2]
[372259632,1752567044873,-500.0,0.00019204,2]
[372259633,1752567044883,-500.0,0.00019204,2]
[372259634,1752567044892,-151.0,0.00019204,2]
[372259635,1752567044902,-151.0,0.00019204,2]
[372259636,1752567044912,-151.0,0.00019204,2]
[372259637,1752567044921,-151.0,0.00019204,2]
[372259638,1752567044931,-151.0,0.00019204,2]
[372259639,1752567044941,-151.0,0.00019205,2]
[372259640,1752567044950,-151.0,0.00019205,2]
[372259641,1752567044961,-1239.0,0.00019205,2]
[372259642,1752567044971,-151.0,0.00019205,2]
[372259643,1752567044980,-151.0,0.00019205,2]
[372259644,1752567044990,-151.0,0.00019205,2]
[372259645,1752567044999,-151.0,0.00019205,2]
[372259646,1752567045009,-151.0,0.00019205,2]
[372259647,1752567045111,-201.42602601,0.00019205,2]
[372259648,1752567045120,-151.0,0.00019205,2]
[372259649,1752567045130,-151.0,0.00019205,2]
[372259650,1752567045140,-151.0,0.00019205,2]
[372259651,1752567045149,-151.0,0.00019205,2]
[372259652,1752567045160,-151.0,0.00019232,2]
[372259653,1752567045169,-151.0,0.00019232,2]
[372259654,1752567045178,-1007.0,0.00019232,2]
[372259655,1752567045188,-448.55373563,0.00019232,2]
[372259656,1752567045197,-178.10132692,0.00019232,2]
[372259657,1752567045208,-151.0,0.00019232,2]
[372259658,1752567045218,-151.0,0.00019232,2]
[372259659,1752567045227,-151.0,0.00019232,2]
[372259660,1752567045237,-151.0,0.00019232,2]
[372259661,1752567045247,-206.23022373,0.00019232,2]
[372259662,1752567045257,-151.0,0.00019233,2]
[372259663,1752567045266,-151.0,0.00019233,2]
[372259664,1752567045276,-1239.0,0.00019233,2]
[372259665,1752567045285,-151.0,0.00019233,2]
[372259666,1752567045295,-199.48917632,0.00019233,2]
[372259667,1752567045304,-198.99179917,0.00019233,2]
[372259668,1752567045314,-246.79616766,0.00019233,2]
[372259669,1752567045325,-151.0,0.00019233,2]
[372259670,1752567045335,-151.0,0.00019233,2]
[372259671,1752567045344,-151.0,0.00019233,2]
[372259672,1752567045354,-151.0,0.00019233,2]
[372259673,1752567045364,-247.18468876,0.00019233,2]
[372259674,1752567045373,-151.66622157,0.00019259,2]
[372259675,1752567045383,-151.87870992,0.00019259,2]
[372259676,1752567045392,-1007.0,0.00019259,2]
[372259677,1752567045402,-288.12379564,0.00019259,2]
[372259678,1752567045411,-151.0,0.00019259,2]
[372259679,1752567045421,-246.69821194,0.00019259,2]
[372259680,1752567045431,-251.27878785,0.00019259,2]
[372259681,1752567045441,-152.78470752,0.0001926,2]
[372259683,1752567045451,-151.0,0.0001926,2]
[372259684,1752567045467,-1239.0,0.0001926,2]
[372259685,1752567045476,-151.0,0.0001926,2]
[372259686,1752567045486,-151.0,0.0001926,2]
[372259687,1752567045495,-151.0,0.0001926,2]
[372259688,1752567045506,-151.0,0.0001926,2]
[372259689,1752567045516,-223.58363869,0.0001926,2]
[372259690,1752567045526,-1007.0,0.00019287,2]
[372259691,1752567045536,-217.25668783,0.00019287,2]
[372259692,1752567045546,-213.07614713,0.00019288,2]
[372259694,1752567045556,-1239.0,0.00019288,2]
[372259695,1752567045565,-183.26403551,0.00019288,2]
[372259696,1752567045575,-249.55284234,0.00019288,2]
[372259697,1752567045585,-153.59413777,0.00019288,2]
[372259698,1752567045594,-151.0,0.00019288,2]
[372259699,1752567045604,-1007.0,0.00019314,2]
[372259700,1752567045613,-1239.0,0.00019315,2]
[372259701,1752567045623,-179.61051443,0.00019315,2]
[372259702,1752567045632,-22836.95982298,0.00019329,2]
[372259703,1752567045642,-1007.0,0.00019341,2]
[372259704,1752567045651,-1239.0,0.00019342,2]
[372259705,1752567045661,-2898.09466799,0.00019348,2]
[372259706,1752567045671,-1007.0,0.00019369,2]
[372259707,1752567045681,-1239.0,0.0001937,2]
[372259708,1752567045692,-1007.0,0.00019396,2]
[372259709,1752567045701,-1239.0,0.00019397,2]
[372259710,1752567045712,-151.0,0.000194,2]
[372259711,1752567045722,-1007.0,0.00019424,2]
[372259712,1752567045731,-1239.0,0.00019425,2]
[372259713,1752567045741,-321.93199536,0.00019436,2]
[372259714,1752567045750,-500.0,0.00019451,2]
[372259715,1752567045760,-1007.0,0.00019451,2]
[372259716,1752567045769,-1239.0,0.00019452,2]
[372259717,1752567045779,-477.09184766,0.00019452,2]
[372259718,1752567045788,-460.0,0.00019452,2]
[372259719,1752567045797,-460.0,0.00019452,2]
[372259720,1752567045806,-460.0,0.00019452,2]
[372259721,1752567045816,-460.0,0.00019452,2]
[372259722,1752567045825,-460.0,0.00019452,2]
[372259723,1752567045835,-460.0,0.00019452,2]
[372259724,1752567045844,-460.0,0.00019452,2]
[372259725,1752567045854,-460.0,0.00019452,2]
[372259726,1752567045863,-471.93943244,0.00019452,2]
[372259727,1752567045872,-460.0,0.00019452,2]
[372259728,1752567045882,-460.0,0.00019452,2]
[372259729,1752567045892,-460.0,0.00019452,2]
[372259730,1752567045901,-460.0,0.00019452,2]
[372259731,1752567045911,-460.0,0.00019452,2]
[372259732,1752567045920,-460.0,0.00019452,2]
[372259733,1752567045930,-460.0,0.00019452,2]
[372259734,1752567045939,-460.0,0.00019452,2]
[372259735,1752567045949,-460.0,0.00019452,2]
[372259736,1752567045959,-467.39116724,0.00019452,2]
[372259737,1752567045969,-460.0,0.00019452,2]
[372259738,1752567045978,-465.50405786,0.00019452,2]
[372259739,1752567045987,-460.0,0.00019452,2]
[372259740,1752567045997,-460.0,0.00019452,2]
[372259741,1752567046007,-460.0,0.00019452,2]
[372259742,1752567046017,-460.0,0.00019452,2]
[372259743,1752567046027,-460.0,0.00019452,2]
[372259744,1752567046036,-460.0,0.00019452,2]
[372259745,1752567046046,-460.0,0.00019452,2]
[372259746,1752567046055,-460.0,0.00019452,2]
[372259747,1752567046066,-460.0,0.00019452,2]
[372259748,1752567046075,-460.0,0.00019452,2]
[372259749,1752567046084,-460.0,0.00019452,2]
[372259750,1752567046094,-466.48360078,0.00019452,2]
[372259751,1752567046103,-460.0,0.00019452,2]
[372259752,1752567046113,-460.0,0.00019452,2]
[372259753,1752567046123,-477.51,0.00019452,2]
[372259754,1752567046133,-460.0,0.00019452,2]
[372259755,1752567046142,-487.39,0.00019452,2]
[372259756,1752567046152,-667.67,0.00019452,2]
[372259757,1752567046161,-460.0,0.00019452,2]
[372259758,1752567046171,-460.0,0.00019452,2]
[372259759,1752567046181,-460.0,0.00019452,2]
[372259760,1752567046190,-460.0,0.00019452,2]
[372259761,1752567046199,-460.0,0.00019452,2]
[372259762,1752567046210,-460.0,0.00019452,2]
[372259763,1752567046219,-460.0,0.00019452,2]
[372259764,1752567046228,-460.0,0.00019452,2]
[372259765,1752567046238,-839.74,0.00019452,2]
[372259766,1752567046247,-460.0,0.00019452,2]
[372259767,1752567046256,-460.0,0.00019452,2]
[372259769,1752567046266,-460.0,0.00019452,2]
[372259770,1752567046274,-460.0,0.00019452,2]
[372259772,1752567046284,-460.0,0.00019452,2]
[372259774,1752567046293,-431.64027945,0.00019452,2]
[372259776,1752567046301,-460.0,0.00019452,2]
[372259778,1752567046311,-495.21,0.00019452,2]
[372259780,1752567046319,-460.0,0.00019452,2]
[372259782,1752567046328,-460.0,0.00019452,2]
[372259784,1752567046337,-460.0,0.00019452,2]
[372259786,1752567046346,-460.0,0.00019452,2]
[372259787,1752567046355,-838.93,0.00019452,2]
[372259789,1752567046365,-460.0,0.00019452,2]
[372259791,1752567046373,-460.0,0.00019452,2]
[372259793,1752567046382,-460.0,0.00019452,2]
[372259795,1752567046392,-460.0,0.00019452,2]
[372259797,1752567046401,-460.0,0.00019452,2]
[372259799,1752567046410,-460.0,0.00019452,2]
[372259801,1752567046419,-886.89,0.00019452,2]
[372259803,1752567046428,-460.0,0.00019452,2]
[372259805,1752567046437,-460.0,0.00019452,2]
[372259807,1752567046446,-460.0,0.00019452,2]
[372259808,1752567046456,-460.0,0.00019452,2]
[372259810,1752567046470,-460.0,0.00019452,2]
[372259812,1752567046480,-208.51133367,0.00019452,2]
[372259814,1752567046491,-463.68112012,0.00019452,2]
[372259816,1752567046501,-460.0,0.00019452,2]
[372259818,1752567046511,-460.0,0.00019452,2]
[372259820,1752567046520,-873.01,0.00019452,2]
[372259822,1752567046530,-526.21,0.00019452,2]
[372259824,1752567046540,-460.0,0.00019452,2]
[372259826,1752567046549,-460.0,0.00019452,2]
[372259828,1752567046559,-460.0,0.00019452,2]
[372259829,1752567046569,-460.0,0.00019452,2]
[372259830,1752567046578,-460.0,0.00019452,2]
[372259831,1752567046588,-460.0,0.00019452,2]
[372259832,1752567046597,-329.04361555,0.00019452,2]
[372259833,1752567046607,-460.0,0.00019452,2]
[372259834,1752567046616,-460.0,0.00019452,2]
[372259835,1752567046626,-460.0,0.00019452,2]
[372259836,1752567046636,-460.0,0.00019452,2]
[372259837,1752567046646,-460.0,0.00019452,2]
[372259838,1752567046655,-460.0,0.00019452,2]
[372259839,1752567046664,-484.92541057,0.00019452,2]
[372259840,1752567046674,-460.0,0.00019452,2]
[372259841,1752567046684,-460.0,0.00019452,2]
[372259842,1752567046693,-460.0,0.00019452,2]
[372259843,1752567046703,-460.0,0.00019452,2]
[372259844,1752567046713,-460.0,0.00019452,2]
[372259845,1752567046723,-460.0,0.00019452,2]
[372259846,1752567046732,-460.0,0.00019452,2]
[372259847,1752567046742,-460.0,0.00019452,2]
[372259849,1752567046751,-460.0,0.00019452,2]
[372259850,1752567046760,-460.0,0.00019452,2]
[372259852,1752567046769,-460.0,0.00019452,2]
[372259854,1752567046778,-460.0,0.00019452,2]
[372259855,1752567046787,-460.0,0.00019452,2]
[372259856,1752567046797,-460.0,0.00019452,2]
[372259857,1752567046806,-463.50643555,0.00019452,2]
[372259858,1752567046816,-460.0,0.00019452,2]
[372259859,1752567046826,-460.0,0.00019452,2]
[372259860,1752567046835,-388.67464359,0.00019452,2]
[372259861,1752567046845,-501.23742626,0.00019452,2]
[372259862,1752567046855,-861.3,0.00019452,2]
[372259863,1752567046865,-560.6,0.00019452,2]
[372259864,1752567046877,-460.0,0.00019452,2]
[372259865,1752567046887,-460.0,0.00019452,2]
[372259866,1752567046898,-460.0,0.00019452,2]
[372259867,1752567046909,-469.91617521,0.00019452,2]
[372259868,1752567046919,-460.0,0.00019452,2]
[372259869,1752567046929,-460.0,0.00019452,2]
[372259870,1752567046939,-460.0,0.00019452,2]
[372259871,1752567046951,-460.0,0.00019452,2]
[372259872,1752567046964,-460.0,0.00019452,2]
[372259873,1752567046977,-460.0,0.00019452,2]
[372259874,1752567046988,-460.0,0.00019452,2]
[372259875,1752567046999,-460.0,0.00019452,2]
[372259876,1752567047009,-151.457053,0.00019452,2]
[372259877,1752567047019,-460.0,0.00019452,2]
[372259878,1752567047028,-460.0,0.00019452,2]
[372259879,1752567047038,-460.0,0.00019452,2]
[372259880,1752567047048,-1269.77,0.00019452,2]
[372259881,1752567047058,-460.0,0.00019452,2]
[372259882,1752567047067,-160.8126597,0.00019452,2]
[372259883,1752567047079,-151.0,0.00019452,2]
[372259884,1752567047088,-460.0,0.00019452,2]
[372259885,1752567047098,-867.08,0.00019452,2]
[372259886,1752567047107,-460.0,0.00019452,2]
[372259887,1752567047117,-1674.63,0.00019452,2]
[372259888,1752567047126,-460.0,0.00019452,2]
[372259889,1752567047134,-460.0,0.00019452,2]
[372259890,1752567047144,-4147.86,0.00019452,2]